fUST/lending_fUST_20240320
["ID","MTS","AMOUNT","RATE_DAILY","PERIOD"]
[319703832,1710925846657,-621.84709307,0.00032498,4]
[319703835,1710925846666,-469.50912641,0.00032498,4]
[319703838,1710925846676,-500.0,0.00032499,2]
[319703841,1710925846687,-451.29264594,0.00032499,2]
[319703844,1710925846698,-500.0,0.00032499,2]
[319703848,1710925846707,-500.0,0.00032499,2]
[319703851,1710925846717,-500.0,0.00032499,2]
[319703854,1710925846727,-488.41542598,0.00032499,2]
[319703856,1710925846736,-500.0,0.00032499,2]
[319703859,1710925846746,-500.0,0.00032499,2]
[319703863,1710925846755,-264.7114934,0.00032499,2]
[319703865,1710925846764,-500.0,0.00032499,2]
[319703868,1710925846775,-289.85048609,0.00032499,2]
[319703871,1710925846785,-500.0,0.00032499,2]
[319703874,1710925846794,-175.44836741,0.00032499,2]
[319703878,1710925846803,-500.0,0.00032499,2]
[319703881,1710925846812,-500.0,0.00032499,2]
[319703884,1710925846821,-500.0,0.00032499,2]
[319703887,1710925846830,-194.6414194,0.00032499,2]
[319703890,1710925846840,-500.0,0.00032499,2]
[319703893,1710925846849,-500.0,0.00032499,2]
[319703895,1710925846859,-301.81882947,0.00032499,2]
[319703898,1710925846868,-417.69481341,0.00032499,2]
[319703901,1710925846878,-493.2772757,0.00032499,2]
[319703904,1710925846887,-168.52586879,0.00032499,2]
[319703907,1710925846896,-500.0,0.00032499,2]
[319703909,1710925846905,-500.0,0.00032499,2]
[319703912,1710925846914,-20651.59694542,0.000325,2]
[319704085,1710925860983,154.84515485,0.00019,2]
[319704086,1710925861032,0.15484515,0.00019,2]
[319704088,1710925907466,997.0,0.00041129,30]
[319704089,1710925918057,997.0,0.00041129,30]
[319704090,1710925929172,997.0,0.00041129,30]
[319704091,1710925939882,997.0,0.00041129,30]
[319704092,1710925950500,997.0,0.00041129,30]
[319704093,1710925961070,997.0,0.00041129,30]
[319704094,1710926169126,1500.0,0.00041113,30]
[319704095,1710926243990,176.0,0.00041113,30]
[319704101,1710926639666,997.0,0.00041113,30]
[319704102,1710926650284,997.0,0.00041113,30]
[319704103,1710926839626,-372.98308778,0.00023036,2]
[319704104,1710926839689,-7.61189975,0.00023036,2]
[319704105,1710926842102,-290.98092274,0.00029272,2]
[319704106,1710926842124,-876.45467613,0.00029273,2]
[319704107,1710926842147,-2804.14077736,0.00029277,2]
[319704108,1710926850168,-6780.53820672,0.00029277,2]
[319704109,1710926890760,10000.0,0.00041117,50]
[319704110,1710927028442,-3123.778356,0.00035616,120]
[319704220,1710927038663,-319.88118119,0.00029277,2]
[319704421,1710927040774,-876.45467613,0.00028984,2]
[319704423,1710927040784,-6711.15200435,0.00029277,2]
[319704426,1710927040795,-6316.9,0.00029277,2]
[319704544,1710927046725,-1967.38783038,0.00029277,2]
[319704545,1710927046735,-181.34588408,0.00029339,4]
[319704546,1710927046744,-279.4111245,0.00029439,2]
[319704547,1710927046753,-166.334957,0.00029661,2]
[319704548,1710927046762,-166.666666,0.00029792,2]
[319704549,1710927046884,-1502.46068589,0.000299,2]
[319704550,1710927046899,-641.25091115,0.0003,4]
[319704551,1710927046909,-308.206698,0.00030154,2]
[319704552,1710927046919,-2000.0,0.00030567,2]
[319704553,1710927046928,-185.587294,0.00030833,2]
[319704554,1710927046937,-324.03136722,0.00031107,3]
[319704555,1710927046947,-867.64529937,0.00031127,2]
[319704556,1710927046957,-2000.0,0.00031974,2]
[319704557,1710927046967,-1000.0,0.00032,32]
[319704558,1710927046977,-1077.77577941,0.00032293,2]
[319704559,1710927046986,-567.04187938,0.00032295,2]
[319704560,1710927069123,154.98450155,0.00019,2]
[319704561,1710927100103,154.8915759,0.00019,2]
[319704562,1710927114102,154.8915759,0.00019,2]
[319704563,1710927134214,163.31032224,0.00019,2]
[319704564,1710927260103,500.0,0.00041117,120]
[319704566,1710927463455,2499.2483,0.00041117,30]
[319704578,1710927992503,199.53213142,0.0002577,120]
[319704579,1710928038142,-469.98746995,0.00027657,2]
[319704580,1710928038170,-210.03782905,0.00027657,2]
[319704581,1710928038197,-534.46429513,0.00027658,2]
[319704582,1710928038219,-366.62315762,0.00027659,2]
[319704583,1710928038239,-154.8915759,0.0002766,2]
[319704584,1710928038260,-308.206698,0.00027662,2]
[319704585,1710928038282,-3939.35893846,0.00028014,2]
[319704586,1710928046176,-3466.88594024,0.00028014,2]
[319704587,1710928046204,-2950.69814732,0.00028452,2]
[319704588,1710928146105,-154.86062544,0.00028452,2]
[319704589,1710928174084,-2498.30468978,0.00028167,2]
[319704590,1710928174105,-2498.30468978,0.00028452,2]
[319704591,1710928174126,-250.0,0.00028537,2]
[319704592,1710928174147,-166.666666,0.00028555,2]
[319704593,1710928174167,-185.587294,0.00029,2]
[319704594,1710928174190,-21209.76397699,0.00029063,2]
[319704671,1710928237848,-160.68166387,0.00028771,2]
[319704673,1710928237858,-728.55759767,0.00028772,2]
[319704675,1710928237867,-151.0,0.00029,2]
[319704677,1710928237877,-2787.90057077,0.00029063,2]
[319704680,1710928237889,-902.33545224,0.00029063,2]
[319704682,1710928237898,-154.8915759,0.00029536,2]
[319704684,1710928237908,-250.0,0.00029537,2]
[319704686,1710928237916,-641.25091115,0.00030428,4]
[319704687,1710928237926,-256.02580498,0.00030429,4]
[319704690,1710928237937,-1822.20943068,0.00030429,4]
[319704692,1710928237946,-13.18357706,0.00030501,2]
[319704729,1710928239966,-153.48308894,0.00030501,2]
[319704730,1710928239988,-250.0,0.00030537,2]
[319704731,1710928240003,-2000.0,0.00030953,2]
[319704732,1710928240014,-158.44907,0.00031086,2]
[319704733,1710928240029,-250.0,0.00031537,2]
[319704734,1710928240043,-195.9328631,0.00032184,2]
[319704735,1710928240057,-195.93286308,0.00032185,2]
[319704736,1710928240071,-195.93286308,0.00032185,2]
[319704737,1710928240083,-551.92828876,0.00032185,2]
[319704749,1710928257262,154.8915759,0.00019,2]
[319704750,1710928275244,95.1084241,0.00019,2]
[319704751,1710928275281,59.8296564,0.00019,2]
[319704804,1710929057238,500.0,0.00041122,120]
[319704807,1710929231168,-2730.49642832,0.00027017,2]
[319704809,1710929235084,-154.84515485,0.00027017,2]
[319704810,1710929243101,-331.89131947,0.00027016,2]
[319704811,1710929243122,-37.80895712,0.00027017,2]
[319704812,1710929250154,-160.68166387,0.00027016,2]
[319704813,1710929250175,-513.0890411,0.00027017,2]
[319704814,1710929250197,-469.98746995,0.00027018,2]
[319704815,1710929250219,-380.27048676,0.00027278,2]
[319704816,1710929250242,-250.0,0.00027861,2]
[319704817,1710929250261,-166.666666,0.00027916,2]
[319704818,1710929250283,-300.0,0.00028029,2]
[319704819,1710929250304,-484.22141269,0.0002803,2]
[319704824,1710929371097,-150.0,0.00027749,2]
[319704825,1710929371118,-150.0,0.00028029,2]
[319704826,1710929371140,-23573.45167651,0.0002803,2]
[319704827,1710929374101,-474.8794344,0.0002803,2]
[319704865,1710929432703,-842.3269108,0.00027749,2]
[319704866,1710929432713,-367.4474764,0.0002803,2]
[319704867,1710929432723,-160.68166387,0.00029717,2]
[319704868,1710929432734,-181.34588408,0.00029718,4]
[319704869,1710929432746,-166.666666,0.00029818,2]
[319704870,1710929432756,-4310.47877657,0.0003,4]
[319704871,1710929432765,-158.452687,0.00030223,2]
[319704872,1710929432775,-632.55316474,0.00031049,2]
[319704873,1710929432785,-155.0,0.00031177,2]
[319704874,1710929432796,-2000.0,0.0003125,2]
[319704875,1710929432805,-306.4456061,0.00031478,2]
[319704876,1710929432815,-402.7259449,0.00031478,2]
[319704877,1710929432825,-166.666666,0.00031721,2]
[319704878,1710929432835,-153.0,0.00032055,2]
[319704879,1710929432845,-153.0,0.00032055,2]
[319704880,1710929432855,-1000.0,0.00032076,2]
[319704881,1710929432865,-608.10063511,0.00032083,2]
[319705283,1710929441323,-178.2842142,0.00028398,2]
[319705285,1710929441333,-640.28745391,0.00032083,2]
[319705287,1710929441342,-188.29349105,0.00032174,2]
[319705289,1710929441351,-1674.4745529,0.00032174,4]
[319705290,1710929441360,-227.41828234,0.00032174,4]
[319705292,1710929441370,-500.0,0.00032174,2]
[319705294,1710929441379,-286.51108662,0.00032174,2]
[319705297,1710929441388,-500.0,0.00032174,2]
[319705298,1710929441398,-500.0,0.00032174,2]
[319705301,1710929441408,-210.6962378,0.00032174,2]
[319705303,1710929441417,-500.0,0.00032174,2]
[319705305,1710929441427,-435.85029358,0.00032174,2]
[319705307,1710929441436,-500.0,0.00032174,2]
[319705308,1710929441446,-500.0,0.00032174,2]
[319705311,1710929441455,-500.0,0.00032174,2]
[319705312,1710929441465,-500.0,0.00032174,2]
[319705314,1710929441474,-500.0,0.00032174,2]
[319705316,1710929441484,-500.0,0.00032174,2]
[319705318,1710929441494,-500.0,0.00032174,2]
[319705320,1710929441504,-500.0,0.00032174,2]
[319705322,1710929441513,-500.0,0.00032174,2]
[319705324,1710929441523,-500.0,0.00032174,2]
[319705327,1710929441532,-500.0,0.00032174,2]
[319705329,1710929441543,-500.0,0.00032174,2]
[319705331,1710929441553,-500.0,0.00032174,2]
[319705333,1710929441562,-500.0,0.00032174,2]
[319705335,1710929441571,-500.0,0.00032174,2]
[319705337,1710929441580,-500.0,0.00032174,2]
[319705339,1710929441590,-500.0,0.00032174,2]
[319705341,1710929441599,-500.0,0.00032174,2]
[319705342,1710929441613,-500.0,0.00032174,2]
[319705344,1710929441622,-500.0,0.00032174,2]
[319705346,1710929441631,-500.0,0.00032174,2]
[319705348,1710929441641,-500.0,0.00032174,2]
[319705351,1710929441651,-500.0,0.00032174,2]
[319705353,1710929441661,-246.52462779,0.00032174,2]
[319705355,1710929441670,-331.23654509,0.00032175,4]
[319705356,1710929441679,-151.0,0.00032175,2]
[319705359,1710929441689,-192.0,0.00032175,2]
[319705360,1710929441700,-44881.47169948,0.00032175,3]
[319705707,1710929796450,-1300.05415471,0.00029974,2]
[319705708,1710929796481,-2747.44273452,0.00029975,2]
[319705709,1710929796511,-4310.47877657,0.0003,4]
[319705710,1710929831508,-1221.18736665,0.00030073,4]
[319705711,1710929831541,-300.0,0.00030074,2]
[319705712,1710929831572,-1417.3229434,0.00030075,2]
[319705713,1710929831602,-957.8448723,0.00031099,2]
[319705714,1710929831635,-187.5384845,0.00031101,2]
[319705715,1710929831667,-24900.0,0.00031102,2]
[319705716,1710929831698,-1016.10633315,0.00031528,4]
[319705718,1710930016163,-186.99808186,0.00025523,2]
[319705719,1710930016192,-930.41641748,0.00025523,2]
[319705720,1710930016224,-263.19755973,0.00025524,7]
[319705721,1710930016251,-876.45467613,0.00025525,2]
[319705722,1710930016278,-290.98092274,0.00025526,2]
[319705723,1710930016305,-994.38955449,0.00025527,4]
[319705724,1710930016331,-1476.73003936,0.00025528,2]
[319705725,1710930016358,-367.59480387,0.00025536,2]
[319705726,1710930042563,-164.597788,0.00029837,2]
[319705727,1710930042590,-1300.05415471,0.00029999,2]
[319705728,1710930042617,-4310.47877657,0.0003,4]
[319705729,1710930042645,-27.04575477,0.00031528,4]
[319705730,1710930042672,-924.0674815,0.00031528,4]
[319705731,1710930042700,-420.39402261,0.00031528,2]
[319705732,1710930042855,-201.2320405,0.000316,2]
[319705733,1710930042884,-2000.0,0.0003182,2]
[319705734,1710930042912,-500.0,0.00031852,2]
[319705735,1710930042938,-2519.72478521,0.00031853,2]
[319705736,1710930053764,-12367.59480387,0.00029722,2]
[319705737,1710930062827,-4367.45238393,0.00029722,2]
[319705738,1710930062854,-428.48502214,0.00031528,2]
[319705739,1710930062881,-449.55124581,0.00031528,4]
[319705740,1710930062908,-4513.48098232,0.00031853,2]
[319705741,1710930062934,-402.464081,0.000319,2]
[319705742,1710930080815,171.65516425,0.00031972,2]
[319705743,1710930084998,997.0,0.00041135,30]
[319705744,1710930095568,997.0,0.00041135,30]
[319705746,1710930240352,-290.98092274,0.00029216,2]
[319705747,1710930240379,-186.99808186,0.00029216,2]
[319705748,1710930240405,-166.666666,0.00029217,2]
[319705749,1710930240431,-4310.47877657,0.00030074,4]
[319705750,1710930240456,-944.88196227,0.00030075,2]
[319705751,1710930240483,-500.00000063,0.00031852,2]
[319705816,1710930437104,-164.597788,0.00029722,2]
[319705817,1710930437125,-310.2816464,0.00029753,2]
[319705818,1710930454086,-319.63966178,0.00029753,2]
[319705819,1710930454115,-135.20549307,0.00031851,4]
[319705822,1710930487171,-4175.2732835,0.00031851,4]
[319705823,1710930487196,-500.0,0.00031852,2]
[319705824,1710930487224,-31078.95190612,0.00032068,3]
[319705825,1710930487248,-181.0,0.00032068,2]
[319705826,1710930487274,-15232.03579128,0.00032068,2]
[319705924,1710930638529,-2512.74787059,0.0003,2]
[319705925,1710930638540,-487.25212941,0.0003,2]
[319705926,1710930638549,-215.88707238,0.00030443,4]
[319705927,1710930638558,-166.666666,0.00030444,2]
[319705928,1710930638567,-7216.66947692,0.00030971,2]
[319706001,1710930641786,-38.74816418,0.00030971,2]
[319706002,1710930641796,-2000.0,0.00031751,2]
[319706004,1710930641806,-2183.45183582,0.00032064,2]
[319706067,1710930643408,-8983.80914508,0.00032064,2]
[319706069,1710930643417,-1190.69806978,0.00032066,2]
[319706071,1710930643426,-304.58410192,0.00032066,2]
[319706073,1710930643436,-1190.69806978,0.00032066,2]
[319706075,1710930643445,-319.9391262,0.00032066,2]
[319706077,1710930643455,-1190.69806978,0.00032066,2]
[319706079,1710930643464,-1190.69806978,0.00032066,2]
[319706081,1710930643474,-1190.69806978,0.00032066,2]
[319706084,1710930643484,-292.61661811,0.00032066,2]
[319706087,1710930643496,-898.08145167,0.00032066,2]
[319706089,1710930643505,-106.15872458,0.00032066,2]
[319706152,1710930645071,154.8915759,0.00019,2]
[319706218,1710930663007,219.87687951,0.00019,2]
[319706219,1710930663051,11.65621159,0.00019,2]
[319706220,1710930856969,500.0,0.00041135,120]
[319706221,1710930898629,-469.98746995,0.00026357,2]
[319706222,1710930898666,-1476.73003936,0.00026358,2]
[319706223,1710930898700,-355.34164374,0.00026362,2]
[319706224,1710930952126,-5000.0,0.00029368,2]
[319706225,1710930952159,-160.68166387,0.00029967,2]
[319706226,1710930952191,-419.94753878,0.00029968,2]
[319706227,1710930952222,-324.03136722,0.0003,3]
[319706228,1710931002830,279.96502586,0.00029968,2]
[319706229,1710931304177,186.64335057,0.00029968,2]
[319706230,1710931325128,3628.7310537,0.0003,2]
[319706232,1710931568748,18474.42213331,0.00041134,30]
[319706242,1710931689132,154.8915759,0.00019,2]
[319706243,1710931825102,154.84515485,0.00019,2]
[319706244,1710931825139,0.09292565,0.00019,2]
[319706279,1710931832548,-534.46429513,0.00028794,2]
[319706281,1710931832557,-469.98746995,0.00028794,2]
[319706283,1710931832569,-210.03782905,0.00028794,2]
[319706284,1710931832579,-366.62315762,0.00028795,2]
[319706285,1710931832588,-154.87609912,0.00028796,2]
[319706286,1710931832598,-2223.25421613,0.00028802,2]
[319706287,1710931832607,-167.720389,0.00029093,2]
[319706288,1710931832617,-301.46042,0.00029716,2]
[319706289,1710931832626,-158.452687,0.00030334,2]
[319706290,1710931832636,-300.0,0.00030446,2]
[319706291,1710931832646,-24900.0,0.00030447,2]
[319706292,1710931832655,-158.4418361,0.00030754,2]
[319706293,1710931832665,-620.62765824,0.00030971,2]
[319706294,1710931832675,-274.3660675,0.00031033,2]
[319706295,1710931832684,-153.0,0.00031178,2]
[319706296,1710931832694,-153.0,0.00031233,2]
[319706297,1710931832703,-153.0,0.00031278,2]
[319706298,1710931832713,-153.0,0.00031278,2]
[319706299,1710931832722,-306.0,0.00031278,2]
[319706300,1710931832731,-306.0000001,0.00031278,2]
[319706301,1710931832741,-401.8540249,0.00031378,2]
[319706302,1710931832750,-201.2320405,0.00031378,2]
[319706303,1710931832759,-306.0,0.00031378,2]
[319706304,1710931832768,-153.0,0.00031378,2]
[319706305,1710931832778,-1411.33985526,0.00031958,2]
[319706306,1710931832788,-1411.33985526,0.00031958,2]
[319706307,1710931832798,-1411.33985526,0.00031958,2]
[319706308,1710931832807,-1411.33985526,0.00031958,2]
[319706309,1710931832818,-1411.33985526,0.00031958,2]
[319706310,1710931832827,-1411.33985526,0.00031958,2]
[319706311,1710931832836,-1411.33985526,0.00031958,2]
[319706312,1710931832846,-1411.33985526,0.00031958,2]
[319706313,1710931832856,-1411.33985526,0.00031958,2]
[319706314,1710931832864,-1411.33985526,0.00031958,2]
[319706315,1710931832873,-1411.33985526,0.00031958,2]
[319706316,1710931832883,-1411.33985526,0.00031958,2]
[319706317,1710931832892,-1411.33985526,0.00031958,2]
[319706318,1710931832902,-105275.39615758,0.00031959,2]
[319706319,1710931833093,-1411.33985526,0.00031958,2]
[319706320,1710931833102,-1164.09851135,0.00031958,2]
[319706377,1710931838472,-247.24134391,0.00031958,2]
[319706379,1710931838481,-67.70365609,0.00031958,2]
[319706381,1710931838493,-850.00014654,0.00031958,2]
[319706499,1710931840509,-493.63605263,0.00031958,2]
[319706500,1710931840519,-65.25444732,0.00031958,2]
[319706501,1710931840531,-256.54894872,0.00031958,2]
[319706502,1710931840543,-464.06785014,0.00031958,2]
[319706518,1710931846109,154.87609912,0.00019,2]
[319706528,1710931899341,155.52982952,0.00019,2]
[319706530,1710932033598,38367.41478821,0.00041126,30]
[319706535,1710932070648,2232.55041676,0.00019,2]
[319706536,1710932070691,16814.7064047,0.00019,2]
[319706540,1710932088690,19047.25682146,0.00019,2]
[319706541,1710932104665,10457.78092675,0.00019,2]
[319706542,1710932104691,6487.0,0.00019,2]
[319706543,1710932104726,2102.47589471,0.00019,2]
[319706546,1710932126706,19047.25682146,0.00019,2]
[319706547,1710932142818,19047.25682146,0.00019,2]
[319706557,1710932160667,9803.01046237,0.00019,2]
[319706558,1710932160701,9244.24635909,0.00019,2]
[319706560,1710932176667,19047.25682146,0.00019,2]
[319706561,1710932198684,19047.25682146,0.00019,2]
[319706562,1710932218671,2661.23999799,0.00019,2]
[319706563,1710932218705,9762.04749289,0.00019,2]
[319706564,1710932237994,-183.64,0.0002,2]
[319706567,1710932575400,1500.0,0.00041088,30]
[319706568,1710932686233,500.0,0.00041086,120]
[319706570,1710932842247,-160.68166387,0.00025821,2]
[319706571,1710932842268,-191.84776158,0.00025822,2]
[319706572,1710932842289,-52.3157294,0.00025823,2]
[319706573,1710932854102,-429.52993299,0.00025823,2]
[319706575,1710932958095,-302.11520456,0.00025561,2]
[319706576,1710932958116,-302.11520456,0.00025819,2]
[319706577,1710932958139,-154.90705577,0.0002582,2]
[319706578,1710932958162,-150.0,0.00026085,2]
[319706579,1710932958185,-4747.73470018,0.00026086,2]
[319706580,1710932958208,-3436.23958139,0.00026086,2]
[319706581,1710932958232,-534.46429513,0.00026087,2]
[319706582,1710932958255,-309.0281693,0.0002667,2]
[319706583,1710932958277,-168.247251,0.00027397,2]
[319706584,1710932958300,-3939.3589384,0.00027536,2]
[319706585,1710932958321,-278.770006,0.00027685,2]
[319706586,1710932958341,-185.1362304,0.00028033,2]
[319706587,1710932958362,-158.441836,0.00028543,2]
[319706588,1710932958383,-203.98396584,0.00028694,2]
[319706589,1710932958404,-23927.74317694,0.00028788,2]
[319706616,1710933032689,-42.29909596,0.00028788,2]
[319706618,1710933032699,-219.0727127,0.0003056,2]
[319706620,1710933032709,-168.247251,0.00030603,2]
[319706621,1710933032719,-306.0,0.00031178,2]
[319706622,1710933032728,-306.0,0.00031178,2]
[319706624,1710933032738,-201.4939044,0.00031178,2]
[319706626,1710933032747,-153.0,0.00031233,2]
[319706628,1710933032756,-153.0,0.00031233,2]
[319706630,1710933032765,-2924.19423634,0.0003168,30]
[319706631,1710933032774,-402.2022171,0.000317,2]
[319706633,1710933032784,-201.2320405,0.00031726,2]
[319706634,1710933032793,-153.0,0.00031781,2]
[319706636,1710933032803,-153.0,0.00031781,2]
[319706638,1710933032812,-1471.41472197,0.00031851,2]
[319706640,1710933032821,-1000.0,0.00031852,2]
[319706641,1710933032831,-1471.41472196,0.00031852,2]
[319706643,1710933032841,-1212.74815167,0.00031853,2]
[319706645,1710933032851,-243.60563182,0.00031854,2]
[319706852,1710933038616,-719.24428367,0.00031232,4]
[319707413,1710933043682,-1650.5732008,0.0003092,2]
[319707414,1710933043693,-5659.66990083,0.00031232,4]
[319707415,1710933043703,-1227.80909014,0.00031854,2]
[319707416,1710933043712,-1471.41472196,0.00031855,2]
[319707417,1710933043722,-1471.41472196,0.00031856,2]
[319707418,1710933043732,-500.0,0.00031881,2]
[319707419,1710933043742,-170.78449117,0.00031881,2]
[319707420,1710933043754,-154.95050007,0.00031947,4]
[319707421,1710933043767,-316.99666353,0.00031947,4]
[319707422,1710933043777,-265.74172339,0.00031948,4]
[319707423,1710933043789,-184.80405682,0.00031948,4]
[319707424,1710933043800,-189.0,0.00031948,2]
[319707425,1710933043811,-203.69203706,0.00031948,2]
[319707426,1710933043822,-500.0,0.00031948,2]
[319707427,1710933043833,-500.0,0.00031948,2]
[319707429,1710933043844,-500.0,0.00031948,2]
[319707430,1710933043854,-500.0,0.00031948,2]
[319707432,1710933043867,-500.0,0.00031948,2]
[319707434,1710933043881,-500.0,0.00031948,2]
[319707435,1710933043894,-500.0,0.00031948,2]
[319707436,1710933043905,-500.0,0.00031948,2]
[319707437,1710933043916,-500.0,0.00031948,2]
[319707438,1710933043929,-500.0,0.00031948,2]
[319707439,1710933043940,-500.0,0.00031948,2]
[319707440,1710933043951,-500.0,0.00031948,2]
[319707441,1710933043962,-500.0,0.00031948,2]
[319707442,1710933043973,-500.0,0.00031948,2]
[319707443,1710933043983,-500.0,0.00031948,2]
[319707444,1710933043994,-500.0,0.00031948,2]
[319707445,1710933044004,-500.0,0.00031948,2]
[319707446,1710933044015,-500.0,0.00031948,2]
[319707447,1710933044026,-500.0,0.00031948,2]
[319707448,1710933044037,-500.0,0.00031948,2]
[319707449,1710933044048,-500.0,0.00031948,2]
[319707450,1710933044058,-500.0,0.00031948,2]
[319707451,1710933044068,-500.0,0.00031948,2]
[319707452,1710933044078,-500.0,0.00031948,2]
[319707453,1710933044087,-500.0,0.00031948,2]
[319707454,1710933044099,-500.0,0.00031948,2]
[319707455,1710933044109,-500.0,0.00031948,2]
[319707456,1710933044119,-500.0,0.00031948,2]
[319707457,1710933044131,-500.0,0.00031948,2]
[319707458,1710933044141,-285.28379493,0.00031948,2]
[319707459,1710933044150,-500.0,0.00031948,2]
[319707460,1710933044162,-500.0,0.00031948,2]
[319707461,1710933044293,-16755.44726592,0.00031948,3]
[319707462,1710933044304,-160.0,0.00031949,10]
[319707463,1710933044314,-1570.14224023,0.00031949,4]
[319707464,1710933044324,-199.96254302,0.00031949,4]
[319707465,1710933044333,-202.18468344,0.00031949,4]
[319707466,1710933044343,-191.45799188,0.00031949,4]
[319707467,1710933044353,-161.73502472,0.00031949,4]
[319707468,1710933044362,-359.6942461,0.00031949,2]
[319707469,1710933044373,-500.0,0.00031949,2]
[319707470,1710933044382,-3435.95,0.00031949,2]
[319707471,1710933044391,-1852.025941,0.00031949,2]
[319707472,1710933044401,-1852.025941,0.00031949,2]
[319707473,1710933044411,-1852.025941,0.00031949,2]
[319707474,1710933044421,-1852.025941,0.00031949,2]
[319707475,1710933044431,-1852.025941,0.00031949,2]
[319707476,1710933044441,-1852.025941,0.00031949,2]
[319707477,1710933044451,-1852.025941,0.00031949,2]
[319707478,1710933044461,-1852.025941,0.00031949,2]
[319707479,1710933044471,-1852.025941,0.00031949,2]
[319707480,1710933044481,-1852.025941,0.00031949,2]
[319707481,1710933044490,-1852.025941,0.00031949,2]
[319707482,1710933044500,-1852.025941,0.00031949,2]
[319707483,1710933044510,-1852.025941,0.00031949,2]
[319707484,1710933044519,-1852.025941,0.00031949,2]
[319707485,1710933044529,-3278.26,0.00031949,2]
[319707487,1710933044539,-500.0,0.00031949,2]
[319707489,1710933044548,-2610.61,0.00031949,2]
[319707490,1710933044558,-500.0,0.00031949,2]
[319707491,1710933044567,-1027.67,0.00031949,2]
[319707492,1710933044576,-3757.41,0.00031949,2]
[319707493,1710933044586,-40915.49,0.00031949,2]
[319707494,1710933044595,-500.0,0.00031949,2]
[319707496,1710933044605,-331.89131947,0.0003195,4]
[319707497,1710933044615,-155.16447434,0.0003195,4]
[319707499,1710933044631,-183.424932,0.0003195,2]
[319707500,1710933044641,-183.424932,0.0003195,2]
[319707502,1710933044650,-183.424932,0.0003195,2]
[319707504,1710933044660,-183.424932,0.0003195,2]
[319707505,1710933044672,-183.424932,0.0003195,2]
[319707506,1710933044683,-183.424932,0.0003195,2]
[319707508,1710933044693,-183.424932,0.0003195,2]
[319707509,1710933044703,-183.424932,0.0003195,2]
[319707510,1710933044713,-183.424932,0.0003195,2]
[319707511,1710933044723,-183.424932,0.0003195,2]
[319707512,1710933044732,-183.424932,0.0003195,2]
[319707513,1710933044741,-183.424932,0.0003195,2]
[319707514,1710933044751,-183.424932,0.0003195,2]
[319707515,1710933044761,-183.424932,0.0003195,2]
[319707516,1710933044771,-151.0,0.0003195,2]
[319707517,1710933044781,-151.0,0.0003195,2]
[319707518,1710933044791,-151.0,0.0003195,2]
[319707519,1710933044801,-151.0,0.0003195,2]
[319707520,1710933044810,-151.0,0.0003195,2]
[319707521,1710933044820,-151.0,0.0003195,2]
[319707522,1710933044829,-151.0,0.0003195,2]
[319707523,1710933044839,-151.0,0.0003195,2]
[319707524,1710933044849,-151.0,0.0003195,2]
[319707525,1710933044858,-151.0,0.0003195,2]
[319707526,1710933044868,-151.0,0.0003195,2]
[319707527,1710933044880,-151.0,0.0003195,2]
[319707528,1710933044889,-151.0,0.0003195,2]
[319707529,1710933044899,-201.661686,0.0003195,2]
[319707530,1710933044908,-160.0,0.00031951,10]
[319707531,1710933044918,-432.469671,0.00031951,2]
[319707532,1710933044927,-432.469671,0.00031951,2]
[319707533,1710933044936,-432.469671,0.00031951,2]
[319707534,1710933044946,-432.469671,0.00031951,2]
[319707535,1710933044956,-432.469671,0.00031951,2]
[319707536,1710933044965,-432.469671,0.00031951,2]
[319707537,1710933044975,-432.469671,0.00031951,2]
[319707538,1710933044984,-432.469671,0.00031951,2]
[319707540,1710933044994,-432.469671,0.00031951,2]
[319707542,1710933045003,-432.469671,0.00031951,2]